fUSD/lending_fUSD_20240115
["ID","MTS","AMOUNT","RATE_DAILY","PERIOD"]
[311648786,1705279854187,-500.0,0.00030136,2]
[311648787,1705279854197,-598.76714425,0.00030136,2]
[311648788,1705279854207,-1906.31,0.00030136,2]
[311648789,1705279854215,-500.0,0.00030136,2]
[311648790,1705279854225,-500.0,0.00030136,2]
[311648791,1705279854234,-3475.72,0.00030136,2]
[311648792,1705279854246,-924.81,0.00030136,2]
[311648793,1705279854479,-662.42,0.00030136,2]
[311648794,1705279854507,-1087.65,0.00030136,2]
[311648795,1705279854517,-500.60304431,0.00030136,2]
[311648796,1705279854526,-500.0,0.00030136,2]
[311648797,1705279854536,-10350.18,0.00030136,2]
[311648798,1705279854545,-1403.1,0.00030136,2]
[311648799,1705279854555,-1496.8,0.00030136,2]
[311648800,1705279854564,-500.0,0.00030136,2]
[311648801,1705279854573,-500.0,0.00030136,2]
[311648802,1705279854583,-500.0,0.00030136,2]
[311648803,1705279854592,-500.0,0.00030136,2]
[311648804,1705279854601,-500.0,0.00030136,2]
[311648805,1705279854611,-500.0,0.00030136,2]
[311648806,1705279854620,-500.0,0.00030136,2]
[311648807,1705279854630,-540.98,0.00030136,2]
[311648808,1705279854639,-500.0,0.00030136,2]
[311648809,1705279854649,-1088.19,0.00030136,2]
[311648810,1705279854658,-500.0,0.00030136,2]
[311648811,1705279854667,-500.0,0.00030136,2]
[311648812,1705279854677,-500.0,0.00030136,2]
[311648813,1705279854686,-503.1314855,0.00030136,2]
[311648814,1705279854695,-1119.78,0.00030136,2]
[311648815,1705279854705,-500.0,0.00030136,2]
[311648816,1705279854714,-500.0,0.00030136,2]
[311648817,1705279854724,-1383.79,0.00030136,2]
[311648818,1705279854733,-500.0,0.00030136,2]
[311648819,1705279854742,-21913.27,0.00030136,2]
[311648820,1705279854751,-500.0,0.00030136,2]
[311648821,1705279854761,-500.0,0.00030136,2]
[311648822,1705279854770,-500.0,0.00030136,2]
[311648823,1705279854779,-974.82,0.00030136,2]
[311648824,1705279854789,-500.0,0.00030136,2]
[311648825,1705279854798,-500.0,0.00030136,2]
[311648826,1705279854808,-5727.32,0.00030136,2]
[311648827,1705279854817,-1630.47,0.00030136,2]
[311648828,1705279854826,-723.29,0.00030136,2]
[311648829,1705279854835,-1153.41,0.00030136,2]
[311648830,1705279854844,-500.0,0.00030136,2]
[311648831,1705279854854,-500.0,0.00030136,2]
[311648832,1705279854864,-500.0,0.00030136,2]
[311648833,1705279854873,-500.0,0.00030136,2]
[311648834,1705279854886,-500.0,0.00030136,2]
[311648835,1705279854895,-1981.06,0.00030136,2]
[311648836,1705279854906,-500.0,0.00030136,2]
[311648837,1705279854915,-5263.24,0.00030136,2]
[311648838,1705279854925,-5275.28,0.00030136,2]
[311648839,1705279854934,-683.83,0.00030136,2]
[311648840,1705279854943,-1390.73,0.00030136,2]
[311648841,1705279854952,-500.0,0.00030136,2]
[311648842,1705279854962,-500.0,0.00030136,2]
[311648843,1705279854971,-500.0,0.00030136,2]
[311648844,1705279854981,-514.93,0.00030136,2]
[311648845,1705279854991,-1450.95,0.00030136,2]
[311648846,1705279855000,-606.13,0.00030136,2]
[311648847,1705279855010,-500.0,0.00030136,2]
[311648848,1705279855019,-500.0,0.00030136,2]
[311648849,1705279855029,-1146.45,0.00030136,2]
[311648850,1705279855039,-500.0,0.00030136,2]
[311648851,1705279855049,-500.0,0.00030136,2]
[311648852,1705279855059,-1000.0,0.00030136,2]
[311648853,1705279855068,-583.14977065,0.00030136,2]
[311648854,1705279855078,-500.0,0.00030136,2]
[311648855,1705279855088,-500.0,0.00030136,2]
[311648856,1705279855098,-2913.21,0.00030136,2]
[311648857,1705279855108,-1264.6,0.00030136,2]
[311648858,1705279855117,-500.0,0.00030136,2]
[311648859,1705279855126,-500.0,0.00030136,2]
[311648860,1705279855136,-500.0,0.00030136,2]
[311648861,1705279855145,-500.0,0.00030136,2]
[311648862,1705279855155,-500.0,0.00030136,2]
[311648863,1705279855165,-500.0,0.00030136,2]
[311648864,1705279855175,-500.0,0.00030136,2]
[311648865,1705279855184,-1312.12,0.00030136,2]
[311648866,1705279855194,-500.0,0.00030136,2]
[311648867,1705279855204,-1282.22,0.00030136,2]
[311648868,1705279855214,-2408.79,0.00030136,2]
[311648869,1705279855223,-500.0,0.00030136,2]
[311648870,1705279855234,-500.0,0.00030136,2]
[311648871,1705279855243,-1167.45,0.00030136,2]
[311648872,1705279855253,-500.0,0.00030136,2]
[311648873,1705279855263,-500.0,0.00030136,2]
[311648874,1705279855272,-500.0,0.00030136,2]
[311648875,1705279855282,-500.0,0.00030136,2]
[311648876,1705279855291,-500.0,0.00030136,2]
[311648877,1705279855300,-500.0,0.00030136,2]
[311648878,1705279855310,-713.56,0.00030136,2]
[311648879,1705279855319,-500.0,0.00030136,2]
[311648880,1705279855328,-500.0,0.00030136,2]
[311648881,1705279855337,-500.0,0.00030136,2]
[311648882,1705279855346,-500.0,0.00030136,2]
[311648883,1705279855355,-500.0,0.00030136,2]
[311648884,1705279855365,-667.66,0.00030136,2]
[311648885,1705279855374,-507.39593235,0.00030136,2]
[311648886,1705279855384,-500.0,0.00030136,2]
[311648887,1705279855393,-500.0,0.00030136,2]
[311648888,1705279855404,-500.0,0.00030136,2]
[311648889,1705279855414,-1072.33,0.00030136,2]
[311648890,1705279855423,-500.0,0.00030136,2]
[311648891,1705279855433,-1738.78,0.00030136,2]
[311648892,1705279855443,-500.0,0.00030136,2]
[311648893,1705279855452,-500.0,0.00030136,2]
[311648894,1705279855462,-500.0,0.00030136,2]
[311648895,1705279855471,-500.0,0.00030136,2]
[311648896,1705279855481,-500.497966,0.00030136,2]
[311648897,1705279855490,-590.16534045,0.00030136,2]
[311648898,1705279856432,-974.99465955,0.00030136,2]
[311648899,1705279856446,-500.0,0.00030136,2]
[311648900,1705279856459,-1082.27,0.00030136,2]
[311648901,1705279856472,-1300.39,0.00030136,2]
[311648902,1705279856486,-500.0,0.00030136,2]
[311648903,1705279856499,-612.93,0.00030136,2]
[311648904,1705279856513,-7526.00918805,0.00030136,2]
[311648905,1705279856581,-957.0,0.000293,2]
[311648906,1705279856595,-330.47081195,0.00030136,2]
[311648907,1705279856608,-190.52921294,0.00030136,2]
[311648908,1705279856659,-309.47078706,0.00030136,2]
[311648909,1705279856672,-500.0,0.00030136,2]
[311648910,1705279856685,-500.0,0.00030136,2]
[311648911,1705279856698,-924.55,0.00030136,2]
[311648912,1705279856711,-1160.14,0.00030136,2]
[311648913,1705279856725,-514.89,0.00030136,2]
[311648914,1705279856737,-537.25190468,0.00030136,2]
[311648915,1705279856750,-500.0,0.00030136,2]
[311648916,1705279856763,-500.0,0.00030136,2]
[311648917,1705279856776,-500.0,0.00030136,2]
[311648918,1705279856790,-500.0,0.00030136,2]
[311648919,1705279856803,-496.51244198,0.00030136,2]
[311648920,1705279856816,-533.65,0.00030136,2]
[311648921,1705279856829,-845.76,0.00030136,2]
[311648922,1705279856842,-500.0,0.00030136,2]
[311648923,1705279856856,-500.0,0.00030136,2]
[311648924,1705279856870,-500.0,0.00030136,2]
[311648925,1705279856885,-521.84,0.00030136,2]
[311648926,1705279856901,-500.0,0.00030136,2]
[311648927,1705279856915,-1620.41,0.00030136,2]
[311648928,1705279856929,-1564.78,0.00030136,2]
[311648929,1705279856943,-500.0,0.00030136,2]
[311648930,1705279856958,-500.0,0.00030136,2]
[311648931,1705279856970,-155.18527112,0.00030136,2]
[311648932,1705279856981,-500.0,0.00030136,2]
[311648933,1705279856990,-500.0,0.00030136,2]
[311648934,1705279856999,-810.62,0.00030136,2]
[311648935,1705279857009,-500.0,0.00030136,2]
[311648936,1705279857019,-500.0,0.00030136,2]
[311648937,1705279857028,-500.0,0.00030136,2]
[311648938,1705279857038,-1209.95,0.00030136,2]
[311648939,1705279857047,-500.0,0.00030136,2]
[311648940,1705279857057,-546.94,0.00030136,2]
[311648941,1705279857066,-642.41,0.00030136,2]
[311648942,1705279857076,-500.0,0.00030136,2]
[311648943,1705279857086,-1676.66,0.00030136,2]
[311648944,1705279857096,-1462.81,0.00030136,2]
[311648945,1705279857105,-1127.16,0.00030136,2]
[311648946,1705279857114,-388.79661735,0.00030136,2]
[311648947,1705279857124,-500.0,0.00030136,2]
[311648948,1705279857132,-3053.6,0.00030136,2]
[311648949,1705279857142,-1255.82,0.00030136,2]
[311648950,1705279857151,-510.47869416,0.00030136,2]
[311648951,1705279857160,-500.0,0.00030136,2]
[311648952,1705279857169,-504.96,0.00030136,2]
[311648953,1705279857178,-500.0,0.00030136,2]
[311648954,1705279857187,-2501.81,0.00030136,2]
[311648955,1705279857197,-502.97110435,0.00030136,2]
[311648956,1705279857206,-500.0,0.00030136,2]
[311648957,1705279857216,-500.0,0.00030136,2]
[311648958,1705279857225,-16068.88,0.00030136,2]
[311648959,1705279857234,-500.0,0.00030136,2]
[311648960,1705279857244,-500.0,0.00030136,2]
[311648961,1705279857253,-500.0,0.00030136,2]
[311648962,1705279857262,-569.22,0.00030136,2]
[311648963,1705279857272,-581.02,0.00030136,2]
[311648964,1705279857281,-500.0,0.00030136,2]
[311648965,1705279857291,-531.43,0.00030136,2]
[311648966,1705279857300,-980.46,0.00030136,2]
[311648967,1705279857310,-893.65,0.00030136,2]
[311648968,1705279857319,-500.0,0.00030136,2]
[311648969,1705279857329,-934.37,0.00030136,2]
[311648970,1705279857338,-500.0,0.00030136,2]
[311648971,1705279857347,-799.0,0.00030136,2]
[311648972,1705279857799,-500.0,0.00030136,2]
[311648973,1705279857823,-2893.0,0.00030136,2]
[311648974,1705279857847,-500.0,0.00030136,2]
[311648975,1705279857869,-3854.59,0.00030136,2]
[311648976,1705279857887,-500.0,0.00030136,2]
[311648977,1705279857896,-1519.73,0.00030136,2]
[311648978,1705279857905,-500.0,0.00030136,2]
[311648979,1705279857915,-500.0,0.00030136,2]
[311648980,1705279857924,-500.0,0.00030136,2]
[311648981,1705279857934,-960.6,0.00030136,2]
[311648982,1705279857944,-500.0,0.00030136,2]
[311648983,1705279857954,-503.35874424,0.00030136,2]
[311648984,1705279857964,-500.0,0.00030136,2]
[311648985,1705279857972,-379.22016837,0.00030136,2]
[311648986,1705279857985,-308.37983163,0.00030136,2]
[311648987,1705279857995,-1730.33,0.00030136,2]
[311648988,1705279858004,-500.0,0.00030136,2]
[311648989,1705279858013,-322.45418512,0.00030136,2]
[311648990,1705279859121,-275.7764463,0.000299,2]
[311648991,1705279859279,-160.0,0.00024899,2]
[311648992,1705279859289,-772.1374001,0.000299,2]
[311648993,1705279859298,-177.54581488,0.00030136,2]
[311648994,1705279859308,-725.69,0.00030136,2]
[311648995,1705279859317,-500.0,0.00030136,2]
[311648996,1705279859327,-550.1996002,0.00030136,2]
[311648997,1705279859337,-500.0,0.00030136,2]
[311648998,1705279859347,-500.0,0.00030136,2]
[311648999,1705279859356,-42.88172979,0.00030136,2]
[311649000,1705279859368,-457.11827021,0.00030136,2]
[311649001,1705279859378,-670.81,0.00030136,2]
[311649002,1705279859388,-681.03,0.00030136,2]
[311649003,1705279859397,-272.66798799,0.00030136,2]
[311649004,1705279859408,-776.0614643,0.00030136,2]
[311649005,1705279859434,-3827.77580514,0.00030136,2]
[311649006,1705279859684,-7956.90273056,0.00030136,2]
[311649007,1705279859693,-500.0,0.00030136,2]
[311649008,1705279859702,-320.49028163,0.00030136,2]
[311649009,1705279859711,-1289.38,0.00030136,2]
[311649010,1705279859721,-500.0,0.00030136,2]
[311649011,1705279859730,-500.0,0.00030136,2]
[311649012,1705279859739,-809.03,0.00030136,2]
[311649013,1705279859748,-759.33,0.00030136,2]
[311649014,1705279859757,-500.0,0.00030136,2]
[311649015,1705279859766,-1103.29,0.00030136,2]
[311649016,1705279859776,-909.11,0.00030136,2]
[311649017,1705279859785,-500.0,0.00030136,2]
[311649018,1705279859794,-500.0,0.00030136,2]
[311649019,1705279859803,-381.77613722,0.00030136,2]
[311649020,1705279860007,-118.22386278,0.00030136,2]
[311649021,1705279860017,-1213.92,0.00030136,2]
[311649022,1705279860026,-594.19,0.00030136,2]
[311649023,1705279860036,-756.83,0.00030136,2]
[311649024,1705279860046,-500.0,0.00030136,2]
[311649025,1705279860055,-722.0,0.00030136,2]
[311649026,1705279860064,-874.62889748,0.00030136,2]
[311649027,1705279860076,-970.28110252,0.00030136,2]
[311649028,1705279860086,-500.0,0.00030136,2]
[311649029,1705279860095,-500.0,0.00030136,2]
[311649030,1705279860104,-500.0,0.00030136,2]
[311649031,1705279860113,-500.0,0.00030136,2]
[311649032,1705279860122,-500.0,0.00030136,2]
[311649033,1705279860131,-500.0,0.00030136,2]
[311649034,1705279860141,-500.0,0.00030136,2]
[311649035,1705279860150,-500.0,0.00030136,2]
[311649036,1705279860160,-500.0,0.00030136,2]
[311649037,1705279860169,-487.8980556,0.00030136,2]
[311649038,1705279860181,-12.1019444,0.00030136,2]
[311649039,1705279860191,-500.0,0.00030136,2]
[311649040,1705279860200,-833.16,0.00030136,2]
[311649041,1705279860209,-500.0,0.00030136,2]
[311649042,1705279860219,-783.19,0.00030136,2]
[311649043,1705279860228,-500.0,0.00030136,2]
[311649044,1705279860237,-940.99,0.00030136,2]
[311649045,1705279860246,-500.0,0.00030136,2]
[311649046,1705279860256,-674.23,0.00030136,2]
[311649047,1705279860265,-500.0,0.00030136,2]
[311649048,1705279860274,-500.0,0.00030136,2]
[311649049,1705279860283,-699.42,0.00030136,2]
[311649050,1705279860292,-500.0,0.00030136,2]
[311649051,1705279860302,-500.0,0.00030136,2]
[311649052,1705279860311,-1688.1,0.00030136,2]
[311649053,1705279860321,-500.0,0.00030136,2]
[311649054,1705279860331,-472.2588556,0.00030136,2]
[311649055,1705279860343,-305.0,0.00030136,2]
[311649056,1705279860355,-1577.5511444,0.00030136,2]
[311649057,1705279860365,-500.0,0.00030136,2]
[311649058,1705279860374,-500.0,0.00030136,2]
[311649059,1705279860383,-160.50850629,0.00030136,2]
[311649060,1705279860393,-500.0,0.00030136,2]
[311649061,1705279860402,-500.0,0.00030136,2]
[311649062,1705279860413,-500.0,0.00030136,2]
[311649063,1705279860422,-500.0,0.00030136,2]
[311649064,1705279860432,-500.0,0.00030136,2]
[311649065,1705279860441,-4083.44903711,0.00030137,2]
[311649066,1705279860458,-916.55096289,0.00030137,2]
[311649067,1705279860467,-151.0,0.00030137,7]
[311649068,1705279860477,-1197.673262,0.00030137,7]
[311649069,1705279860486,-1197.673262,0.00030137,7]
[311649070,1705279860495,-2591.59391311,0.00030137,2]
[311649071,1705279860997,-512.6399146,0.00030137,2]
[311649072,1705279861013,-1450.36617229,0.00030137,2]
[311649073,1705279861023,-414.019545,0.00030137,7]
[311649074,1705279861032,-414.019545,0.00030137,7]
[311649075,1705279861042,-153.84,0.00030137,2]
[311649076,1705279861051,-151.0,0.00030137,7]
[311649077,1705279861061,-155.0,0.00030137,2]
[311649078,1705279861070,-154.3,0.00030174,2]
[311649079,1705279861080,-4013.21766368,0.00030187,2]
[311649080,1705279861096,-366.06292347,0.00030187,2]
[311649081,1705279861111,-690.0,0.00030187,2]
[311649082,1705279861124,-3588.70815769,0.00030187,2]
[311649083,1705279867324,-345.42521057,0.00025,2]
[311649084,1705279867357,-1000.0,0.00025,2]
[311649085,1705279869799,207.0,0.00021845,2]
[311649086,1705279870563,508.43471138,0.00025,2]
[311649087,1705279871368,2657.1484,0.00024799,2]
[311649088,1705279871915,15281.99167805,0.00023,2]
[311649089,1705279903451,707.8615045,0.00021849,7]
[311649125,1705279979873,256.67819371,0.00021849,2]
[311649126,1705279984603,205.0,0.00021845,2]
[311649128,1705280048539,2647.18808254,0.0002,2]
[311649131,1705280065624,6287.62910243,0.00022,2]
[311649135,1705280082207,393.86,0.00022187,2]
[311649136,1705280377259,155.72,0.00022105,2]
[311649137,1705280385039,2861.05,0.00021978,2]
[311649138,1705280425324,500.0,0.00022014,2]
[311649139,1705280443343,2000.0,0.00022014,2]
[311649140,1705280580572,374.16,0.00020096,2]
[311649141,1705280607584,497.73,0.00021995,2]
[311649142,1705280615510,250.0,0.00021995,2]
[311649143,1705280653621,505.47,0.00022014,2]
[311649144,1705280796433,200.1906815,0.00021904,2]
[311649145,1705280802316,167.15,0.00022193,2]
[311649155,1705280959218,164.19,0.00022116,2]
[311649161,1705281017888,369.3,0.00019989,2]
[311649194,1705281031543,-299.42368159,0.00022253,2]
[311649196,1705281031554,-69.87631841,0.00022253,2]
[311649199,1705281031564,-162.83,0.00022254,2]
[311649201,1705281031573,-67.29368159,0.000223,8]
[311649203,1705281031585,-132.70631841,0.000223,8]
[311649205,1705281031594,-155.65367293,0.00022306,2]
[311649208,1705281031619,-0.06632707,0.00022306,2]
[311649211,1705281031628,-465.45406582,0.000224,8]
[311649212,1705281031640,-34.54593418,0.000224,8]
[311649213,1705281031649,-167.15,0.00022424,2]
[311649214,1705281031658,-800.0,0.000225,8]
[311649215,1705281031667,-155.72,0.00022507,2]
[311649216,1705281031678,-1100.0,0.000226,8]
[311649217,1705281031687,-167.15,0.00022655,2]
[311649218,1705281031696,-2175.09216203,0.00022655,2]
[311649219,1705281031716,-226.13783797,0.00022655,2]
[311649220,1705281031725,-3573.86216203,0.00022655,2]
[311649221,1705281031748,-2177.44783797,0.00022655,2]
[311649222,1705281031757,-1400.0,0.000227,8]
[311649223,1705281031767,-155.72,0.00022708,2]
[311649224,1705281031776,-161.95122086,0.00022795,2]
[311649225,1705281031786,-200.0,0.000228,8]
[311649226,1705281031794,-167.15,0.00022887,2]
[311649227,1705281031804,-2118.56405589,0.00022887,2]
[311649228,1705281031813,-763.2792291,0.00022895,2]
[311649229,1705281031822,-188.0,0.00022896,2]
[311649230,1705281031831,-34934.14129813,0.00022897,2]
[311649231,1705281031849,-955.35774204,0.00022897,2]
[311649232,1705281031861,-431.71184903,0.00022897,2]
[311649233,1705281031873,-474.01370317,0.00022897,2]
[311649237,1705281031907,-21137.0,0.00022897,2]
[311649240,1705281031919,-3768.03114283,0.00022897,2]
[311649288,1705281037551,-4891.1564276,0.00022897,2]
[311649291,1705281037662,-305.4331147,0.00022897,2]
[311649292,1705281037678,-846.02,0.00022897,2]
[311649293,1705281037772,-17244.17923057,0.00022897,2]
[311649295,1705281037889,-160012.95549193,0.00022897,2]
[311649297,1705281037899,-161.0,0.00022897,2]
[311649299,1705281037909,-2332.10590734,0.00022897,2]
[311649301,1705281037919,-171.31214998,0.00022897,2]
[311649303,1705281037930,-1128.44,0.00022898,2]
[311649305,1705281037939,-193.37650752,0.00022898,6]
[311649307,1705281037949,-698.60923094,0.00022898,2]
[311649309,1705281037958,-171.31214998,0.00022898,2]
[311649311,1705281037967,-2280.00658169,0.00022898,2]
[311649313,1705281037977,-569.67213966,0.00022898,2]
[311649315,1705281037986,-173.2111182,0.00022898,2]
[311649317,1705281037996,-1083.24890893,0.00022898,2]
[311649319,1705281038005,-238.15555752,0.00022898,2]
[311649321,1705281038016,-499.99,0.00022899,2]
[311649323,1705281038025,-171.31214998,0.00022899,2]
[311649325,1705281038034,-698.60923093,0.00022899,2]
[311649327,1705281038044,-2280.00658168,0.00022899,2]
[311649329,1705281038053,-569.67213966,0.00022899,2]
[311649331,1705281038063,-173.21111819,0.00022899,2]
[311649333,1705281038072,-1083.24890892,0.00022899,2]
[311649335,1705281038082,-238.1555575,0.00022899,2]
[311649338,1705281038091,-11459.0475,0.000229,2]
[311649340,1705281038101,-911.09757394,0.000229,2]
[311649342,1705281038110,-289.52628459,0.000229,2]
[311649344,1705281038120,-171.31214998,0.000229,2]
[311649346,1705281038129,-698.60923093,0.000229,2]
[311649348,1705281038139,-569.67213966,0.000229,2]
[311649350,1705281038149,-2280.00658168,0.000229,2]
[311649352,1705281038158,-173.21111819,0.000229,2]
[311649354,1705281038168,-1083.24890892,0.000229,2]
[311649356,1705281038180,-238.1555575,0.000229,2]
[311649358,1705281038189,-200.0,0.000229,8]
[311649359,1705281038198,-155.72,0.00022909,2]
[311649360,1705281038208,-505.47,0.00022992,2]
[311649361,1705281038218,-619601.64999319,0.00022997,2]
[311649362,1705281038227,-2707245.04838588,0.00022998,2]
[311649363,1705281038237,-24496.74833206,0.00022998,2]
[311649364,1705281038248,-947.5997059,0.00022998,2]
[311649365,1705281038259,-239.23240074,0.00022998,2]
[311649366,1705281038269,-246.52989565,0.00022998,2]
[311649367,1705281038279,-1941.28804665,0.00022998,2]
[311649368,1705281038290,-143372.0988286,0.00022998,2]
[311649370,1705281038300,-162.07655107,0.00022998,2]
[311649372,1705281038310,-311.74164615,0.00022998,2]
[311649374,1705281038320,-724.02279719,0.00022998,2]
[311649376,1705281038330,-1046.54380072,0.00022998,2]
[311649378,1705281038339,-300.41501205,0.00022998,2]
[311649380,1705281038349,-287.71847632,0.00022998,2]
[311649382,1705281038360,-550.94962823,0.00022998,2]
[311649384,1705281038370,-155.0,0.00022998,2]
[311649386,1705281038380,-533.7952539,0.00022998,2]
[311649389,1705281038390,-151.04115,0.00022998,3]
[311649391,1705281038400,-151.04115,0.00022998,3]
[311649393,1705281038411,-151.04115,0.00022998,3]
[311649394,1705281038422,-151.04115,0.00022998,3]
[311649397,1705281038434,-151.04115,0.00022998,3]
[311649399,1705281038445,-151.04115,0.00022998,3]
[311649401,1705281038459,-151.04115,0.00022998,3]
[311649402,1705281038470,-151.04115,0.00022998,3]
[311649405,1705281038484,-8093.21053374,0.00022998,2]
[311649407,1705281038494,-151.04115,0.00022998,3]
[311649409,1705281038503,-2606.18162672,0.00022998,2]
[311649411,1705281038513,-151.40115,0.00022998,3]
[311649413,1705281038522,-151.40115,0.00022998,3]
[311649415,1705281038532,-151.40115,0.00022998,3]
[311649417,1705281038543,-151.40115,0.00022998,3]
[311649419,1705281038553,-151.40115,0.00022998,3]
[311649421,1705281038562,-151.40115,0.00022998,3]
[311649423,1705281038572,-151.40115,0.00022998,3]
[311649425,1705281038582,-151.40115,0.00022998,3]
[311649427,1705281038593,-151.40115,0.00022998,3]
[311649428,1705281038603,-151.40115,0.00022998,3]
[311649430,1705281038614,-151.40115,0.00022998,3]
[311649433,1705281038624,-151.40115,0.00022998,3]
[311649434,1705281038633,-151.40115,0.00022998,3]
[311649436,1705281038643,-151.40115,0.00022998,3]
[311649438,1705281038653,-151.40115,0.00022998,3]
[311649440,1705281038663,-151.40115,0.00022998,3]
[311649442,1705281038673,-151.40115,0.00022998,3]
[311649445,1705281038684,-151.40115,0.00022998,3]
[311649446,1705281038694,-278.39615547,0.00022998,3]
[311649449,1705281038703,-332726.51772079,0.00022999,2]
[311649451,1705281038713,-150.0,0.00022999,2]
[311649453,1705281038725,-300.0,0.00022999,2]
[311649455,1705281038734,-300.0,0.00022999,2]
[311649457,1705281038744,-300.0,0.00022999,2]
[311649458,1705281038754,-300.0,0.00022999,2]
[311649461,1705281038764,-2502125.08746613,0.00023,2]
[311649462,1705281038774,-2361339.36244905,0.00023,2]
[311649464,1705281038784,-155.879494,0.00023,7]
[311649467,1705281038794,-151.0,0.00023,7]
[311649469,1705281038804,-151.0,0.00023,7]
[311649471,1705281038814,-151.0,0.00023,7]
[311649472,1705281038824,-151.0,0.00023,7]
[311649474,1705281038835,-151.0,0.00023,7]
[311649477,1705281038844,-151.0,0.00023,7]
[311649478,1705281038854,-151.0,0.00023,7]
[311649480,1705281038865,-151.0,0.00023,7]
[311649482,1705281038875,-151.0,0.00023,7]
[311649484,1705281038886,-151.0,0.00023,7]
[311649487,1705281038896,-151.0,0.00023,7]
[311649489,1705281038906,-166.627512,0.00023,7]
[311649490,1705281038917,-166.627512,0.00023,7]
[311649493,1705281038928,-243.836447,0.00023,7]
[311649495,1705281038938,-243.836447,0.00023,7]
[311649497,1705281038949,-151.0,0.00023,7]
[311649499,1705281038960,-151.0,0.00023,7]
[311649501,1705281038972,-151.0,0.00023,7]
[311649502,1705281038982,-151.0,0.00023,7]
[311649505,1705281038992,-151.0,0.00023,7]
[311649507,1705281039002,-159.120713,0.00023,7]
[311649508,1705281039011,-372.61759,0.00023,7]
[311649510,1705281039020,-372.61759,0.00023,7]
[311649512,1705281039030,-151.0,0.00023,7]
[311649514,1705281039040,-151.0,0.00023,7]
[311649517,1705281039050,-281.224429,0.00023,7]
[311649519,1705281039060,-151.0,0.00023,7]
[311649521,1705281039070,-151.0,0.00023,7]
[311649523,1705281039080,-251.316492,0.00023,7]
[311649524,1705281039089,-1102.146646,0.00023,7]
[311649526,1705281039099,-1102.146646,0.00023,7]
[311649528,1705281039109,-151.0,0.00023,7]
[311649530,1705281039119,-273.09299,0.00023,7]
[311649532,1705281039129,-151.0,0.00023,7]
[311649534,1705281039138,-150.0,0.00023,2]
[311649536,1705281039148,-151.0,0.00023,7]
[311649538,1705281039158,-151.0,0.00023,7]
[311649540,1705281039168,-502.27,0.00023086,2]
[311649542,1705281039178,-155.72,0.0002311,2]
[311649544,1705281039188,-167.15,0.00023118,2]
[311649546,1705281039198,-3310.82739141,0.0002313,2]
[311649549,1705281039208,-1035.84772524,0.00023288,2]
[311649551,1705281039218,-391.37190598,0.00023288,2]
[311649553,1705281039228,-500.0,0.00023288,2]
[311649555,1705281039237,-1035.84772524,0.00023288,2]
[311649557,1705281039247,-1035.84772524,0.00023288,2]
[311649559,1705281039256,-400.70190149,0.00023288,2]
[311649561,1705281039266,-1035.84772524,0.00023288,2]
[311649563,1705281039276,-1035.84772524,0.00023288,2]
[311649565,1705281039285,-1035.84772524,0.00023288,2]
[311649567,1705281039295,-1035.84772524,0.00023288,2]
[311649568,1705281039304,-1035.84772524,0.00023288,2]
[311649570,1705281039314,-1035.84772524,0.00023288,2]